[Event "WCCC G10 2019"]
[Site "Weifang"]
[Date "2019.08.22"]
[Round "2.8"]
[White "Gaszka, Zuzanna"]
[Black "Stoll, Lucia"]
[Result "1-0"]
[ECO "D36"]
[WhiteElo "1230"]
[BlackElo "1596"]
[Annotator "NA"]
[PlyCount "129"]
[EventDate "2019.08.21"]
[EventType "swiss"]
[EventCountry "CHN"]
[SourceTitle "playchess.com"]
[Source "ChessBase"]
[SourceQuality "1"]
[TimeControl "40/5400+30:1800+30"]

1. d4 {[%emt 0:00:00]} d5 {[%emt 0:00:00]} 2. c4 {[%emt 0:00:00]} e6 {[%emt 0:00:13]} 3. Nc3 {[%emt 0:00:30]} Nf6 {[%emt 0:00:44]} 4. cxd5 {[%emt 0:00:37]} exd5 {[%emt 0:00:11]} 5. Bg5 {[%emt 0:00:37]} Be7 {[%emt 0:00:27]} 6. e3 {[%emt 0:00:50]} c6 {[%emt 0:00:54]} 7. Bd3 {[%emt 0:00:50]} Nbd7 {[%emt 0:01:39]} 8. Qc2 {[%emt 0:00:48]} Nf8 {[%emt 0:00:50]} 9. Nge2 {[%emt 0:00:57]} g6 {[%emt 0:01:43]} 10. f3 {[%emt 0:02:00]} Ne6 {[%emt 0:00:14]} 11. Bh4 {[%emt 0:00:26]} O-O {[%emt 0:00:53]} 12. O-O-O {[%emt 0:01:02]} b5 {[%emt 0:06:12]} 13. g4 {[%emt 0:02:36]} a5 {[%emt 0:02:29]} 14. Bg3 {[%emt 0:01:37]} Ba6 {[%emt 0:13:39]} 15. h4 {[%emt 0:07:57]} b4 {[%emt 0:09:02]} 16. Na4 {[%emt 0:03:06]} Bxd3 {[%emt 0:01:21]} 17. Rxd3 {[%emt 0:14:20]} c5 {[%emt 0:01:47]} 18. dxc5 {[%emt 0:02:01]} Bxc5 {[%emt 0:02:13]} 19. Kb1 {[%emt 0:02:07]} Rc8 {[%emt 0:04:21]} 20. Qd2 {[%emt 0:07:04]} Qd7 {[%emt 0:04:08]} 21. b3 {[%emt 0:04:44]} Rfd8 {[%emt 0:02:12]} 22. Be5 {[%emt 0:04:58]} Ne8 {[%emt 0:03:45]} 23. h5 {[%emt 0:03:57]} Qb7 {[%emt 0:07:38]} 24. hxg6 {[%emt 0:04:01]} fxg6 {[%emt 0:00:05]} 25. Nf4 {[%emt 0:06:10]} Nxf4 {[%emt 0:01:28]} 26. exf4 {[%emt 0:02:30]} Bf8 {[%emt 0:02:34]} 27. f5 {[%emt 0:02:51]} Bg7 {[%emt 0:01:12]} 28. Bxg7 {[%emt 0:01:42]} Qxg7 {[%emt 0:02:39]} 29. Rxd5 {[%emt 0:03:23]} Rxd5 {[%emt 0:02:04]} 30. Qxd5+ {[%emt 0:00:14]} Kh8 {[%emt 0:00:23]} 31. Qe6 {[%emt 0:01:51]} Rd8 {[%emt 0:01:08]} 32. fxg6 {[%emt 0:00:59]} Nf6 {[%emt 0:01:18]} 33. Qf5 {[%emt 0:05:36]} Re8 {[%emt 0:02:44]} 34. g5 {[%emt 0:00:57]} Kg8 {[%emt 0:01:18]} 35. gxf6 {[%emt 0:00:25]} Qxg6 {[%emt 0:00:25]} 36. f7+ {[%emt 0:03:36]} Qxf7 {[%emt 0:00:40]} 37. Rg1+ {[%emt 0:00:20]} Kf8 {[%emt 0:00:25]} 38. Qxa5 {[%emt 0:01:07]} Qxf3 {[%emt 0:00:52]} 39. Qxb4+ {[%emt 0:00:14]} Re7 {[%emt 0:00:50]} 40. Qb8+ {[%emt 0:02:12]} Re8 {[%emt 0:00:43]} 41. Rg8+ {[%emt 0:34:39]} Kxg8 {[%emt 0:30:09]} 42. Qxe8+ {[%emt 0:00:08]} Kg7 {[%emt 0:00:14]} 43. Qd7+ {[%emt 0:00:33]} Kg6 {[%emt 0:00:22]} 44. Qd6+ {[%emt 0:02:19]} Kf7 {[%emt 0:00:30]} 45. Nc5 {[%emt 0:00:00]} Qf1+ {[%emt 0:00:00]} 46. Kb2 {[%emt 0:00:00]} Qe2+ {[%emt 0:00:00]} 47. Ka3 {[%emt 0:00:00]} h5 {[%emt 0:00:00]} 48. Qd7+ {[%emt 0:00:00]} Kf6 {[%emt 0:00:00]} 49. Qd6+ {[%emt 0:00:00]} Kf7 {[%emt 0:00:00]} 50. Qd5+ {[%emt 0:00:00]} Kg6 {[%emt 0:00:00]} 51. Qe4+ {[%emt 0:00:00]} Qxe4 {[%emt 0:00:00]} 52. Nxe4 {[%emt 0:00:00]} h4 {[%emt 0:00:00]} 53. b4 {[%emt 0:00:00]} Kf5 {[%emt 0:00:00]} 54. b5 {[%emt 0:00:00]} Ke5 {[%emt 0:00:00]} 55. b6 {[%emt 0:00:00]} h3 {[%emt 0:00:00]} 56. b7 {[%emt 0:00:00]} Kxe4 {[%emt 0:00:00]} 57. b8=Q {[%emt 0:00:00]} Kf3 {[%emt 0:00:00]} 58. Qh2 {[%emt 0:00:00]} Kg4 {[%emt 0:00:00]} 59. Kb3 {[%emt 0:00:00]} Kh4 {[%emt 0:00:00]} 60. Kc3 {[%emt 0:00:00]} Kg4 {[%emt 0:00:00]} 61. Kd3 {[%emt 0:00:00]} Kh4 {[%emt 0:00:00]} 62. Ke4 {[%emt 0:00:00]} Kg4 {[%emt 0:00:00]} 63. Ke5 {[%emt 0:00:13]} Kh4 {[%emt 0:00:00]} 64. Kf5 {[%emt 0:00:09]} Kh5 {[%emt 0:00:00]} 65. Qxh3# {[%emt 0:00:04]} 1-0

[Event "WCCC G10 2019"]
[Site "Weifang"]
[Date "2019.08.22"]
[Round "2.9"]
[White "Sneha Halder"]
[Black "Munkh-Oyun, Munkhbat"]
[Result "1-0"]
[ECO "A07"]
[WhiteElo "1561"]
[BlackElo "1153"]
[Annotator "NA"]
[PlyCount "65"]
[EventDate "2019.08.21"]
[EventType "swiss"]
[EventCountry "CHN"]
[SourceTitle "playchess.com"]
[Source "ChessBase"]
[SourceQuality "1"]
[TimeControl "40/5400+30:1800+30"]

1. Nf3 {[%emt 0:00:00]} Nf6 {[%emt 0:00:00]} 2. g3 {[%emt 0:08:53]} d5 {[%emt 0:00:06]} 3. Bg2 {[%emt 0:00:05]} Bf5 {[%emt 0:00:27]} 4. O-O {[%emt 0:00:41]} g6 {[%emt 0:01:06]} 5. c4 {[%emt 0:00:21]} Bg7 {[%emt 0:01:16]} 6. Qb3 {[%emt 0:06:08]} Bc8 {[%emt 0:12:31]} 7. cxd5 {[%emt 0:00:00]} Nxd5 {[%emt 0:04:39]} 8. Nd4 {[%emt 0:00:00]} e6 {[%emt 0:01:49]} 9. Bxd5 {[%emt 0:00:00]} exd5 {[%emt 0:00:54]} 10. Qe3+ {[%emt 0:00:00]} Qe7 {[%emt 0:01:30]} 11. Nb5 {[%emt 0:01:04]} Na6 {[%emt 0:05:47]} 12. N1c3 {[%emt 0:05:28]} Qxe3 {[%emt 0:00:39]} 13. fxe3 {[%emt 0:04:48]} Be6 {[%emt 0:10:00]} 14. e4 {[%emt 0:05:56]} dxe4 {[%emt 0:01:52]} 15. Nxe4 {[%emt 0:03:54]} Bc4 {[%emt 0:01:04]} 16. Nbd6+ {[%emt 0:01:07]} cxd6 {[%emt 0:01:06]} 17. Nxd6+ {[%emt 0:00:07]} Ke7 {[%emt 0:01:15]} 18. Nxc4 {[%emt 0:01:27]} Nb4 {[%emt 0:03:16]} 19. d3 {[%emt 0:03:34]} Rhe8 {[%emt 0:03:12]} 20. Bf4 {[%emt 0:01:24]} Kf8 {[%emt 0:01:57]} 21. Bd6+ {[%emt 0:00:16]} Kg8 {[%emt 0:00:49]} 22. Bxb4 {[%emt 0:00:17]} b5 {[%emt 0:01:00]} 23. Nd6 {[%emt 0:00:10]} Rxe2 {[%emt 0:03:17]} 24. Bc3 {[%emt 0:02:27]} Bxc3 {[%emt 0:02:44]} 25. bxc3 {[%emt 0:00:07]} a6 {[%emt 0:00:25]} 26. Rae1 {[%emt 0:00:27]} Rd2 {[%emt 0:07:01]} 27. Nxf7 {[%emt 0:01:27]} Rxd3 {[%emt 0:01:54]} 28. Re7 {[%emt 0:02:29]} Rxc3 {[%emt 0:05:56]} 29. Nh6+ {[%emt 0:00:40]} Kh8 {[%emt 0:00:09]} 30. Rff7 {[%emt 0:00:06]} Rc1+ {[%emt 0:00:51]} 31. Kg2 {[%emt 0:00:12]} Rc2+ {[%emt 0:00:33]} 32. Kh3 {[%emt 0:00:07]} Rc5 {[%emt 0:00:51]} 33. Rxh7# {[%emt 0:00:59]} 1-0

[Event "WCCC G10 2019"]
[Site "Weifang"]
[Date "2019.08.22"]
[Round "2.10"]
[White "Budaeva, Victoria"]
[Black "Zhao, Yunqing"]
[Result "1/2-1/2"]
[ECO "B20"]
[WhiteElo "1074"]
[BlackElo "1539"]
[Annotator "NA"]
[PlyCount "86"]
[EventDate "2019.08.21"]
[EventType "swiss"]
[EventCountry "CHN"]
[SourceTitle "playchess.com"]
[Source "ChessBase"]
[SourceQuality "1"]
[TimeControl "40/5400+30:1800+30"]

1. e4 {[%emt 0:00:00]} c5 {[%emt 0:00:00]} 2. d3 {[%emt 0:00:00]} Nc6 {[%emt 0:00:00]} 3. g3 {[%emt 0:00:00]} g6 {[%emt 0:00:00]} 4. c3 {[%emt 0:00:00]} Bg7 {[%emt 0:00:00]} 5. Bg2 {[%emt 0:00:01]} d6 {[%emt 0:01:28]} 6. Ne2 {[%emt 0:00:14]} e6 {[%emt 0:02:11]} 7. Nd2 {[%emt 0:00:10]} Nge7 {[%emt 0:00:43]} 8. O-O {[%emt 0:00:27]} O-O {[%emt 0:00:07]} 9. Re1 {[%emt 0:00:17]} Rb8 {[%emt 0:00:39]} 10. a4 {[%emt 0:00:24]} a6 {[%emt 0:00:43]} 11. Nf1 {[%emt 0:00:30]} b5 {[%emt 0:02:17]} 12. axb5 {[%emt 0:00:39]} axb5 {[%emt 0:00:27]} 13. Be3 {[%emt 0:00:48]} b4 {[%emt 0:01:04]} 14. Qd2 {[%emt 0:00:50]} Qc7 {[%emt 0:01:24]} 15. Bh6 {[%emt 0:00:45]} bxc3 {[%emt 0:03:14]} 16. bxc3 {[%emt 0:00:21]} Na5 {[%emt 0:05:27]} 17. Bxg7 {[%emt 0:01:45]} Kxg7 {[%emt 0:00:08]} 18. Rab1 {[%emt 0:00:42]} Ba6 {[%emt 0:01:01]} 19. f4 {[%emt 0:04:26]} c4 {[%emt 0:01:34]} 20. d4 {[%emt 0:01:46]} Nb3 {[%emt 0:01:51]} 21. Qe3 {[%emt 0:00:34]} Bb7 {[%emt 0:06:04]} 22. Nc1 {[%emt 0:00:55]} Nxc1 {[%emt 0:00:55]} 23. Rexc1 {[%emt 0:00:18]} d5 {[%emt 0:00:22]} 24. e5 {[%emt 0:02:40]} Bc6 {[%emt 0:01:16]} 25. g4 {[%emt 0:01:01]} Rxb1 {[%emt 0:02:26]} 26. Rxb1 {[%emt 0:00:23]} Rb8 {[%emt 0:01:38]} 27. Rxb8 {[%emt 0:02:08]} Qxb8 {[%emt 0:00:08]} 28. h4 {[%emt 0:01:01]} h6 {[%emt 0:06:49]} 29. Kh2 {[%emt 0:02:41]} Qb1 {[%emt 0:00:35]} 30. Ng3 {[%emt 0:01:05]} Ba4 {[%emt 0:11:58]} 31. h5 {[%emt 0:04:07]} Bd1 {[%emt 0:02:17]} 32. Bf3 {[%emt 0:03:24]} Qc2+ {[%emt 0:00:56]} 33. Kh3 {[%emt 0:00:15]} Bxf3 {[%emt 0:01:18]} 34. Qxf3 {[%emt 0:00:06]} Qb1 {[%emt 0:03:03]} 35. hxg6 {[%emt 0:01:29]} fxg6 {[%emt 0:00:47]} 36. Qe2 {[%emt 0:08:45]} Qc1 {[%emt 0:04:19]} 37. Qf3 {[%emt 0:00:23]} Qb1 {[%emt 0:00:50]} 38. Qe2 {[%emt 0:00:30]} Qc1 {[%emt 0:01:30]} 39. Qf3 {[%emt 0:00:06]} Qc2 {[%emt 0:00:06]} 40. Nf1 {[%emt 0:02:48]} Kf7 {[%emt 0:09:13]} 41. Ng3 {[%emt 0:32:35]} Kg7 {[%emt 0:32:18]} 42. Nf1 {[%emt 0:00:17]} Kf7 {[%emt 0:01:40]} 43. Ng3 {[%emt 0:00:11]} Kg7 {[%emt 0:00:14]} 1/2-1/2

[Event "WCCC G10 2019"]
[Site "Weifang"]
[Date "2019.08.23"]
[Round "3.1"]
[White "Li, Rachael"]
[Black "Kaliakhmet, Elnaz"]
[Result "1-0"]
[ECO "B26"]
[WhiteElo "1911"]
[BlackElo "1538"]
[Annotator "NA"]
[PlyCount "131"]
[EventDate "2019.08.21"]
[EventType "swiss"]
[EventCountry "CHN"]
[SourceTitle "playchess.com"]
[Source "ChessBase"]
[SourceQuality "1"]
[TimeControl "40/5400+30:1800+30"]

1. e4 {[%emt 0:00:00]} c5 {[%emt 0:00:00]} 2. Nc3 {[%emt 0:00:00]} Nc6 {[%emt 0:00:22]} 3. g3 {[%emt 0:00:00]} g6 {[%emt 0:00:23]} 4. Bg2 {[%emt 0:00:00]} Bg7 {[%emt 0:00:33]} 5. d3 {[%emt 0:00:00]} d6 {[%emt 0:00:48]} 6. Be3 {[%emt 0:00:01]} Rb8 {[%emt 0:00:26]} 7. Qd2 {[%emt 0:00:09]} b5 {[%emt 0:00:12]} 8. Nge2 {[%emt 0:00:06]} b4 {[%emt 0:01:39]} 9. Nd1 {[%emt 0:00:09]} Nd4 {[%emt 0:03:09]} 10. O-O {[%emt 0:00:16]} e6 {[%emt 0:00:49]} 11. c3 {[%emt 0:06:02]} bxc3 {[%emt 0:01:01]} 12. Ndxc3 {[%emt 0:04:58]} Ne7 {[%emt 0:01:44]} 13. Rac1 {[%emt 0:03:05]} O-O {[%emt 0:03:49]} 14. b3 {[%emt 0:00:42]} Ba6 {[%emt 0:03:30]} 15. Rfd1 {[%emt 0:05:47]} Qd7 {[%emt 0:01:40]} 16. Bh6 {[%emt 0:02:25]} Nec6 {[%emt 0:04:08]} 17. Bxg7 {[%emt 0:02:16]} Kxg7 {[%emt 0:00:16]} 18. Nxd4 {[%emt 0:06:57]} Nxd4 {[%emt 0:01:07]} 19. e5 {[%emt 0:03:00]} Bb7 {[%emt 0:17:01]} 20. exd6 {[%emt 0:22:22]} Qxd6 {[%emt 0:01:27]} 21. Ne4 {[%emt 0:02:29]} Bxe4 {[%emt 0:00:27]} 22. dxe4 {[%emt 0:00:07]} Rfd8 {[%emt 0:00:34]} 23. Kh1 {[%emt 0:03:24]} Rbc8 {[%emt 0:04:13]} 24. Rc4 {[%emt 0:04:05]} Rc7 {[%emt 0:03:52]} 25. Rdc1 {[%emt 0:03:06]} Rdc8 {[%emt 0:01:29]} 26. b4 {[%emt 0:00:39]} e5 {[%emt 0:03:30]} 27. Bh3 {[%emt 0:03:27]} f5 {[%emt 0:17:25]} 28. exf5 {[%emt 0:00:18]} gxf5 {[%emt 0:00:10]} 29. Rxc5 {[%emt 0:02:53]} Rxc5 {[%emt 0:00:36]} 30. bxc5 {[%emt 0:00:29]} Rxc5 {[%emt 0:00:29]} 31. Qg5+ {[%emt 0:01:03]} Kh8 {[%emt 0:00:29]} 32. Rxc5 {[%emt 0:06:33]} Qxc5 {[%emt 0:00:52]} 33. Qd8+ {[%emt 0:00:02]} Kg7 {[%emt 0:00:34]} 34. Qd7+ {[%emt 0:00:05]} Kg6 {[%emt 0:00:50]} 35. Bxf5+ {[%emt 0:08:31]} Nxf5 {[%emt 0:01:20]} 36. Qe6+ {[%emt 0:00:04]} Kg5 {[%emt 0:00:29]} 37. h4+ {[%emt 0:00:08]} Kg4 {[%emt 0:00:59]} 38. Kg2 {[%emt 0:00:13]} Qf8 {[%emt 0:15:13]} 39. f3+ {[%emt 0:01:04]} Kh5 {[%emt 0:02:17]} 40. Kh3 {[%emt 0:00:23]} Nxh4 {[%emt 0:05:32]} 41. Qg4+ {[%emt 0:40:16]} Kh6 {[%emt 0:30:19]} 42. Qxh4+ {[%emt 0:01:09]} Kg6 {[%emt 0:00:08]} 43. Qg4+ {[%emt 0:00:06]} Kf6 {[%emt 0:00:45]} 44. Qd7 {[%emt 0:00:24]} Qg7 {[%emt 0:01:01]} 45. Qd6+ {[%emt 0:00:17]} Kf5 {[%emt 0:00:28]} 46. g4+ {[%emt 0:00:45]} Kg5 {[%emt 0:01:13]} 47. Qd2+ {[%emt 0:02:29]} Kf6 {[%emt 0:00:12]} 48. Kg3 {[%emt 0:00:00]} h5 {[%emt 0:00:00]} 49. Qd8+ {[%emt 0:00:00]} Ke6 {[%emt 0:00:00]} 50. Qe8+ {[%emt 0:00:00]} Kd5 {[%emt 0:00:00]} 51. Qxh5 {[%emt 0:00:00]} Kd4 {[%emt 0:00:00]} 52. Qf5 {[%emt 0:00:00]} Kd5 {[%emt 0:00:00]} 53. f4 {[%emt 0:00:00]} Qb7 {[%emt 0:00:00]} 54. Qxe5+ {[%emt 0:00:00]} Kc4 {[%emt 0:00:00]} 55. Qe6+ {[%emt 0:00:00]} Kd4 {[%emt 0:00:00]} 56. g5 {[%emt 0:00:00]} Qh1 {[%emt 0:00:00]} 57. Qd7+ {[%emt 0:00:00]} Kc4 {[%emt 0:00:00]} 58. Qxa7 {[%emt 0:00:00]} Qe1+ {[%emt 0:00:00]} 59. Qf2 {[%emt 0:00:00]} Qc3+ {[%emt 0:00:00]} 60. Kg4 {[%emt 0:00:00]} Qg7 {[%emt 0:00:00]} 61. f5 {[%emt 0:00:00]} Qd7 {[%emt 0:00:00]} 62. g6 {[%emt 0:00:00]} Qd1+ {[%emt 0:00:00]} 63. Kg5 {[%emt 0:00:00]} Qc1+ {[%emt 0:00:00]} 64. Qf4+ {[%emt 0:00:00]} Qxf4+ {[%emt 0:00:00]} 65. Kxf4 {[%emt 0:00:00]} Kd5 {[%emt 0:00:00]} 66. g7 {[%emt 0:00:00]} 1-0

[Event "WCCC G10 2019"]
[Site "Weifang"]
[Date "2019.08.23"]
[Round "3.2"]
[White "Jiang, Tianyu"]
[Black "Lee, Alice"]
[Result "0-1"]
[ECO "D56"]
[WhiteElo "1381"]
[BlackElo "1822"]
[Annotator "NA"]
[PlyCount "126"]
[EventDate "2019.08.21"]
[EventType "swiss"]
[EventCountry "CHN"]
[SourceTitle "playchess.com"]
[Source "ChessBase"]
[SourceQuality "1"]
[TimeControl "40/5400+30:1800+30"]

1. d4 {[%emt 0:00:00]} Nf6 {[%emt 0:00:00]} 2. c4 {[%emt 0:00:00]} e6 {[%emt 0:00:00]} 3. Nf3 {[%emt 0:00:00]} d5 {[%emt 0:00:31]} 4. Nc3 {[%emt 0:00:05]} Be7 {[%emt 0:00:19]} 5. Bg5 {[%emt 0:00:28]} h6 {[%emt 0:00:46]} 6. Bh4 {[%emt 0:00:58]} O-O {[%emt 0:00:37]} 7. e3 {[%emt 0:01:00]} Nbd7 {[%emt 0:00:36]} 8. Be2 {[%emt 0:00:56]} c5 {[%emt 0:00:49]} 9. dxc5 {[%emt 0:03:03]} Nxc5 {[%emt 0:02:08]} 10. cxd5 {[%emt 0:01:17]} Nxd5 {[%emt 0:00:49]} 11. Bxe7 {[%emt 0:00:52]} Nxe7 {[%emt 0:00:56]} 12. Qxd8 {[%emt 0:02:34]} Rxd8 {[%emt 0:00:12]} 13. Rd1 {[%emt 0:00:17]} Rxd1+ {[%emt 0:01:56]} 14. Kxd1 {[%emt 0:00:12]} Bd7 {[%emt 0:03:53]} 15. Ne5 {[%emt 0:03:21]} Be8 {[%emt 0:02:13]} 16. Kc2 {[%emt 0:02:23]} Rc8 {[%emt 0:03:50]} 17. Kb1 {[%emt 0:02:19]} f6 {[%emt 0:02:12]} 18. Nf3 {[%emt 0:03:08]} Bg6+ {[%emt 0:02:25]} 19. Ka1 {[%emt 0:00:56]} Ne4 {[%emt 0:03:23]} 20. Nxe4 {[%emt 0:01:26]} Bxe4 {[%emt 0:00:13]} 21. Re1 {[%emt 0:06:43]} e5 {[%emt 0:04:30]} 22. a3 {[%emt 0:09:20]} Rc2 {[%emt 0:02:49]} 23. Ka2 {[%emt 0:02:36]} Nc6 {[%emt 0:02:29]} 24. Ka1 {[%emt 0:06:42]} a5 {[%emt 0:03:01]} 25. Ka2 {[%emt 0:01:58]} a4 {[%emt 0:02:17]} 26. Ka1 {[%emt 0:02:32]} Na5 {[%emt 0:01:48]} 27. Ng1 {[%emt 0:08:29]} Nb3+ {[%emt 0:05:40]} 28. Ka2 {[%emt 0:00:49]} Nc1+ {[%emt 0:03:39]} 29. Ka1 {[%emt 0:00:30]} Nxe2 {[%emt 0:11:25]} 30. Nxe2 {[%emt 0:00:27]} Bxg2 {[%emt 0:01:07]} 31. f4 {[%emt 0:01:48]} Bc6 {[%emt 0:02:55]} 32. Kb1 {[%emt 0:01:08]} Be4 {[%emt 0:01:22]} 33. Ka1 {[%emt 0:01:36]} Bd3 {[%emt 0:01:09]} 34. Nc1 {[%emt 0:02:16]} Bc4 {[%emt 0:01:13]} 35. Rh1 {[%emt 0:01:31]} exf4 {[%emt 0:01:41]} 36. exf4 {[%emt 0:01:02]} Rf2 {[%emt 0:01:13]} 37. Na2 {[%emt 0:00:52]} Rxf4 {[%emt 0:01:56]} 38. Nc3 {[%emt 0:01:18]} b5 {[%emt 0:01:08]} 39. Kb1 {[%emt 0:01:09]} Kf7 {[%emt 0:01:04]} 40. Kc1 {[%emt 0:01:03]} Rf1+ {[%emt 0:01:07]} 41. Rxf1 {[%emt 0:30:27]} Bxf1 {[%emt 0:30:12]} 42. Kd2 {[%emt 0:00:49]} Ke6 {[%emt 0:02:16]} 43. Ke3 {[%emt 0:00:44]} Ke5 {[%emt 0:02:33]} 44. Kf2 {[%emt 0:02:33]} Bc4 {[%emt 0:00:52]} 45. Ke3 {[%emt 0:00:21]} f5 {[%emt 0:01:10]} 46. Kf2 {[%emt 0:00:28]} g5 {[%emt 0:01:02]} 47. h3 {[%emt 0:01:15]} h5 {[%emt 0:01:13]} 48. Kg3 {[%emt 0:00:43]} h4+ {[%emt 0:01:17]} 49. Kf3 {[%emt 0:00:24]} Bd5+ {[%emt 0:00:40]} 50. Kf2 {[%emt 0:02:08]} Bc6 {[%emt 0:01:18]} 51. Kg1 {[%emt 0:01:17]} g4 {[%emt 0:01:05]} 52. hxg4 {[%emt 0:00:21]} fxg4 {[%emt 0:00:18]} 53. Kh2 {[%emt 0:01:19]} Kf4 {[%emt 0:00:55]} 54. Ne2+ {[%emt 0:01:43]} Ke3 {[%emt 0:00:55]} 55. Nc3 {[%emt 0:01:01]} Bf3 {[%emt 0:02:38]} 56. Nxb5 {[%emt 0:03:29]} Kf2 {[%emt 0:01:02]} 57. Nd4 {[%emt 0:02:16]} g3+ {[%emt 0:00:59]} 58. Kh3 {[%emt 0:02:29]} g2 {[%emt 0:00:29]} 59. Nxf3 {[%emt 0:00:18]} Kxf3 {[%emt 0:00:06]} 60. Kxh4 {[%emt 0:00:22]} g1=Q {[%emt 0:00:07]} 61. Kh5 {[%emt 0:01:30]} Qg7 {[%emt 0:00:48]} 62. b4 {[%emt 0:00:37]} Kf4 {[%emt 0:00:17]} 63. b5 {[%emt 0:01:03]} Qh7# {[%emt 0:00:31] Kg4+ Kxg4} 0-1

[Event "WCCC G10 2019"]
[Site "Weifang"]
[Date "2019.08.23"]
[Round "3.3"]
[White "Shukhman, Anna"]
[Black "Indira Priyadharshini Subbu"]
[Result "1-0"]
[ECO "B59"]
[WhiteElo "1806"]
[BlackElo "1346"]
[Annotator "NA"]
[PlyCount "97"]
[EventDate "2019.08.21"]
[EventType "swiss"]
[EventCountry "CHN"]
[SourceTitle "playchess.com"]
[Source "ChessBase"]
[SourceQuality "1"]
[TimeControl "40/5400+30:1800+30"]

1. e4 {[%emt 0:00:00]} c5 {[%emt 0:00:00]} 2. Nf3 {[%emt 0:00:00]} d6 {[%emt 0:00:07]} 3. d4 {[%emt 0:00:00]} cxd4 {[%emt 0:00:09]} 4. Nxd4 {[%emt 0:00:00]} Nf6 {[%emt 0:00:12]} 5. Nc3 {[%emt 0:00:00]} Nc6 {[%emt 0:00:19]} 6. Be2 {[%emt 0:01:23]} e5 {[%emt 0:00:13]} 7. Nb3 {[%emt 0:00:33]} Be7 {[%emt 0:00:12]} 8. Be3 {[%emt 0:00:05]} O-O {[%emt 0:00:09]} 9. O-O {[%emt 0:00:48]} Be6 {[%emt 0:00:34]} 10. h3 {[%emt 0:00:44]} d5 {[%emt 0:03:24]} 11. exd5 {[%emt 0:00:20]} Nxd5 {[%emt 0:00:13]} 12. Nxd5 {[%emt 0:00:41]} Qxd5 {[%emt 0:04:36]} 13. Nc5 {[%emt 0:04:08]} Nd4 {[%emt 0:08:17]} 14. Nxe6 {[%emt 0:03:40]} Nxe2+ {[%emt 0:01:02]} 15. Qxe2 {[%emt 0:00:07]} Qxe6 {[%emt 0:00:43]} 16. Rfd1 {[%emt 0:01:50]} a6 {[%emt 0:02:12]} 17. Qf3 {[%emt 0:01:09]} e4 {[%emt 0:08:25]} 18. Qf4 {[%emt 0:02:23]} Rac8 {[%emt 0:01:59]} 19. Rd2 {[%emt 0:05:49]} Bf6 {[%emt 0:02:29]} 20. c3 {[%emt 0:00:47]} Be5 {[%emt 0:00:21]} 21. Qh4 {[%emt 0:02:15]} f5 {[%emt 0:01:13]} 22. Bf4 {[%emt 0:04:21]} Bxf4 {[%emt 0:02:26]} 23. Qxf4 {[%emt 0:00:10]} Rfd8 {[%emt 0:03:02]} 24. Rad1 {[%emt 0:03:03]} Rxd2 {[%emt 0:03:37]} 25. Rxd2 {[%emt 0:00:05]} g6 {[%emt 0:00:49]} 26. a3 {[%emt 0:00:58]} Qe7 {[%emt 0:12:44]} 27. Rd5 {[%emt 0:09:14]} Rd8 {[%emt 0:03:59]} 28. c4 {[%emt 0:01:21]} Rc8 {[%emt 0:04:22]} 29. Qd2 {[%emt 0:01:40]} Rc7 {[%emt 0:04:10]} 30. Rd8+ {[%emt 0:00:37]} Kg7 {[%emt 0:00:45]} 31. Qd4+ {[%emt 0:00:20]} Qf6 {[%emt 0:00:41]} 32. Rg8+ {[%emt 0:00:22]} Kxg8 {[%emt 0:00:44]} 33. Qxf6 {[%emt 0:00:06]} Rxc4 {[%emt 0:00:45]} 34. Qe6+ {[%emt 0:00:05]} Kg7 {[%emt 0:00:08]} 35. Qxc4 {[%emt 0:00:06]} b5 {[%emt 0:00:09]} 36. Qd4+ {[%emt 0:00:14]} Kf7 {[%emt 0:00:07]} 37. Qa7+ {[%emt 0:00:06]} Kf6 {[%emt 0:00:07]} 38. Qxa6+ {[%emt 0:00:05]} Ke5 {[%emt 0:00:06]} 39. Qxb5+ {[%emt 0:00:07]} Kf6 {[%emt 0:00:06]} 40. a4 {[%emt 0:00:04]} f4 {[%emt 0:00:06]} 41. a5 {[%emt 0:30:03]} e3 {[%emt 0:30:04]} 42. fxe3 {[%emt 0:00:04]} fxe3 {[%emt 0:00:06]} 43. a6 {[%emt 0:00:02]} e2 {[%emt 0:00:09]} 44. Qxe2 {[%emt 0:00:04]} h5 {[%emt 0:00:09]} 45. a7 {[%emt 0:00:04]} g5 {[%emt 0:00:02]} 46. a8=Q {[%emt 0:00:06]} Kf5 {[%emt 0:00:05]} 47. Qf8+ {[%emt 0:00:09]} Kg6 {[%emt 0:00:03]} 48. Qe6+ {[%emt 0:00:06]} Kh7 {[%emt 0:00:05]} 49. Qef5# {[%emt 0:00:04]} 1-0